Workbook

Sheet Income Statement
A3: Prologis Inc. (NYSE: PLD)
A4: Consolidated Statements of Income - Thousands USD | B4: FY 2020 | C4: FY 2021 | D4: FY 2022 | E4: FY 2023E | F4: FY 2024E | G4: FY 2025E | H4: FY 2026E | I4: FY 2027E
A5: Revenues:
A6: Rental | B6: 3,791,131 | C6: 4,147,994 | D6: 4,913,171 | E6: ='Revenue Build'!E5 -> 5,502,752 | F6: ='Revenue Build'!F5 -> 6,163,082 | G6: ='Revenue Build'!G5 -> 6,841,021 | H6: ='Revenue Build'!H5 -> 7,593,533 | I6: ='Revenue Build'!I5 -> 8,352,886
A7: Strategic capital | B7: 636,987 | C7: 590,750 | D7: 1,039,585 | E7: ='Revenue Build'!E7 -> 1,143,544 | F7: ='Revenue Build'!F7 -> 1,257,898 | G7: ='Revenue Build'!G7 -> 1,383,688 | H7: ='Revenue Build'!H7 -> 1,535,893 | I7: ='Revenue Build'!I7 -> 1,704,842
A8: Development management and other | B8: 10,617 | C8: 20,696 | D8: 20,936 | E8: ='Revenue Build'!E9 -> 21,145 | F8: ='Revenue Build'!F9 -> 21,357 | G8: ='Revenue Build'!G9 -> 21,784 | H8: ='Revenue Build'!H9 -> 22,220 | I8: ='Revenue Build'!I9 -> 22,664
A9: Total revenues | B9: =SUM(B6:B8) -> 4,438,735 | C9: =SUM(C6:C8) -> 4,759,440 | D9: =SUM(D6:D8) -> 5,973,692 | E9: ='Revenue Build'!E11 -> 6,667,440 | F9: ='Revenue Build'!F11 -> 7,442,336 | G9: ='Revenue Build'!G11 -> 8,246,492 | H9: ='Revenue Build'!H11 -> 9,151,646 | I9: ='Revenue Build'!I11 -> 10,080,392
A10: % Growth | C10: =(C9-B9)/B9 -> 7% | D10: =(D9-C9)/C9 -> 26% | E10: ='Revenue Build'!E12 -> 12% | F10: ='Revenue Build'!F12 -> 12% | G10: ='Revenue Build'!G12 -> 11% | H10: ='Revenue Build'!H12 -> 11% | I10: ='Revenue Build'!I12 -> 10%
A11: Expenses:
A12: Rental | B12: 952,063 | C12: 1,041,316 | D12: 1,205,738 | E12: =D12*(1+E13) -> 1,338,369.18 | F12: =E12*(1+F13) -> 1,485,589.79 | G12: 1,649,004.67 | H12: 1,830,395.18 | I12: 2,031,738.65
A13: % Change | C13: =C12/B12-1 -> 9% | D13: =D12/C12-1 -> 16% | E13: 11% | F13: 11% | G13: 11% | H13: 11% | I13: 11%
A14: Strategic Capital | B14: 218,041 | C14: 207,171 | D14: 303,356 | E14: =D14*(1+E15) -> 309,423.12 | F14: =E14*(1+F15) -> 315,611.58 | G14: 321,923.81 | H14: 328,362.29 | I14: 334,929.54
A15: % Change | C15: =C14/B14-1 -> -5% | D15: =D14/C14-1 -> 46% | E15: 2% | F15: 2% | G15: 2% | H15: 2% | I15: 2%
A16: COGS | B16: =SUM(B12:B14) -> 1,170,104 | C16: =SUM(C12:C14) -> 1,248,487 | D16: 1,509,094 | E16: =E12+E14 -> 1,647,792.30 | F16: =F12+F14 -> 1,801,201.37 | G16: 1,970,928.48 | H16: 2,158,757.47 | I16: 2,366,668.19
A17: General and administrative | B17: 274,845 | C17: 293,167 | D17: 331,083 | E17: =D17*(1+E18) -> 363,528 | F17: =E17*(1+F18) -> 399,881 | G17: 439,869 | H17: 483,856 | I17: 532,242
A18: % Change | C18: =C17/B17-1 -> 7% | D18: =D17/C17-1 -> 13% | E18: =AVERAGE(C18:D18) -> 10% | F18: 10% | G18: 10% | H18: 10% | I18: 10%
A19: Depreciation and amortization | B19: 1,561,969 | C19: 1,577,942 | D19: 1,812,777 | E19: ='Consolidated Statements of Cash'!E8 -> 849,432 | F19: ='Consolidated Statements of Cash'!F8 -> 948,154 | G19: ='Consolidated Statements of Cash'!G8 -> 964,840 | H19: ='Consolidated Statements of Cash'!H8 -> 1,070,743 | I19: ='Consolidated Statements of Cash'!I8 -> 1,048,361
A20: Other | B20: 30,010 | C20: 22,435 | D20: 40,336 | E20: =D20*(1+3%) -> 41,546 | F20: =E20*(1+3%) -> 42,792 | G20: 44,076 | H20: 45,399 | I20: 46,760
A21: Total Expenses | B21: =SUM(B12:B20) -> 4,207,032 | C21: =SUM(C12:C20) -> 4,390,518 | D21: =SUM(D12:D20) -> 5,202,385 | E21: =E12+E14+E17+E19+E20 -> 2,902,299 | F21: =F12+F14+F17+F19+F20 -> 3,192,029 | G21: 3,419,714 | H21: 3,758,755 | I21: 3,994,031
A22: Gross Profit | B22: =B9-B21 -> 231,703 | C22: 368,922 | D22: 771,307 | E22: 3,765,142 | F22: 4,250,308 | G22: 4,826,779 | H22: 5,392,891 | I22: 6,086,361
A23: Operating income before gains on real estate transactions, net | B23: 1,401,807 | C23: 1,617,409 | D23: 2,280,402 | E23: =E9*E24 -> 2,305,567 | F23: =F9*F24 -> 2,604,818 | G23: =G9*G24 -> 2,886,272 | H23: =H9*H24 -> 3,203,076 | I23: =I9*I24 -> 3,528,137
A24: % Sales | B24: =B23/B9 -> 32% | C24: =C23/C9 -> 34% | D24: =D23/D9 -> 38% | E24: =AVERAGE(B24:D24) -> 35% | F24: 35% | G24: 35% | H24: 35% | I24: 35%
A25: Gains on dispositions of development properties and land, net | B25: 464,942 | C25: 817,017 | D25: 597,745 | E25: =E9*E26 -> 836,701 | F25: =F9*F26 -> 967,504 | G25: =G9*G26 -> 1,072,044 | H25: =H9*H26 -> 1,189,714 | I25: =I9*I26 -> 1,310,451
A26: % Sales | B26: =B25/B9 -> 10% | C26: =C25/C9 -> 17% | D26: =D25/D9 -> 10% | E26: =AVERAGE(B26:D26) -> 13% | F26: 13% | G26: 13% | H26: 13% | I26: 13%
A27: Gains on other dispositions of investments in real estate, net | B27: 252,195 | C27: 772,570 | D27: 589,391 | E27: =E9*E28 -> 706,315 | F27: =F9*F28 -> 818,657 | G27: =G9*G28 -> 907,114 | H27: =H9*H28 -> 1,006,681 | I27: =I9*I28 -> 1,108,843
A28: % Sales | B28: =B27/B9 -> 6% | C28: =C27/C9 -> 16% | D28: =D27/D9 -> 10% | E28: =AVERAGE(B28:D28) -> 11% | F28: 11% | G28: 11% | H28: 11% | I28: 11%
A29: Operating income (EBIT) | B29: =SUM(B23+B25+B27) -> 2,118,944 | C29: =SUM(C23+C25+C27) -> 3,206,996 | D29: 3,467,538 | E29: 3,848,584 | F29: 4,390,978 | G29: 4,865,430 | H29: 5,399,471 | I29: 5,947,431
A30: Other income (expense):
A31: Interest Expense | B31: 314,507 | C31: 266,228 | D31: 309,037 | E31: =D31*(1+4%) -> 321,398 | F31: =E31*(1+4%) -> 334,254 | G31: 347,625 | H31: 361,530 | I31: 375,991
A32: Total other income (expense) | B32: 371,856 | C32: 115,852 | D32: 223,272 | E32: =D32*(1+4%) -> 232,203 | F32: =E32*(1+4%) -> 241,491 | G32: 251,151 | H32: 261,197 | I32: 271,645
A33: Earnings before income taxes (EBT) | B33: 1,747,088 | C33: 3,322,848 | D33: 3,690,810 | E33: =D33*(1+6%) -> 3,912,259 | F33: =E33*(1+6%) -> 4,146,994 | G33: 4,395,814 | H33: 4,659,563 | I33: 4,939,136
A34: Total income tax expense | B34: 130,458 | C34: 174,258 | D34: 135,412 | E34: =D34*(1+E35) -> 142,406 | F34: =E34*(1+F35) -> 149,527 | G34: 157,003 | H34: 164,853 | I34: 173,096
A35: Tax Rate | B35: =B34/B29 -> 6% | C35: =C34/C29 -> 5% | D35: =D34/D29 -> 4% | E35: =AVERAGE(B35:D35) -> 5% | F35: 5% | G35: 5% | H35: 5% | I35: 5%
A36: Net Income | B36: =B33-B34 -> 1,616,630 | C36: 3,148,590 | D36: 3,555,398 | E36: 3,769,852 | F36: 3,997,468 | G36: 4,238,811 | H36: 4,494,710 | I36: 4,766,041
A37: Less: net earnings attributable to noncontrolling interests | B37: 134,816 | C37: 208,867 | D37: 190,542 | E37: =D37*(1+7%) -> 203,880 | F37: =E37*(1+7%) -> 218,152 | G37: 233,422 | H37: 249,762 | I37: 267,245
A38: Net earnings attributable to Prologis Inc. | B38: =B36-B37 -> 1,481,814 | C38: =C36-C37 -> 2,939,723 | D38: 3,364,856 | E38: 3,565,972 | F38: 3,779,316 | G38: 4,005,389 | H38: 4,244,948 | I38: 4,498,796
A43: Less preferred stock/unit dividends/distributions | B43: 6,345 | C43: 6,152 | D43: 6,060
A44: Loss on preferred stock/unit repurchase | B44: 2,347 | C44: 0 | D44: 0
A45: Net earnings attributable to common stockholders/unitholders | B45: $ 1,473,122 | C45: $ 2,933,571 | D45: $ 3,358,796
A46: Basic (shares) | B46: 728,323 | C46: 739,363 | D46: 785,675
A47: Diluted (shares) | B47: 754,414 | C47: 764,762 | D47: 811,608
A48: Net earnings per share/unit attributable to common stockholders/unitholders - Basic | B48: $ 2.02 | C48: $ 3.97 | D48: $ 4.28
A49: Net earnings per share/unit attributable to common stockholders/unitholders - Diluted | B49: $ 2.01 | C49: $ 3.94 | D49: $ 4.25

Sheet Consolidated Balance Sheets
A3: Prologis Inc. (NYSE: PLD)
A4: Consolidated Balance Sheets - USD ($) shares in Thousands, $ in Thousands | B4: FY 2020 | C4: FY 2021 | D4: FY 2022 | E4: FY 2023E | F4: FY 2024E | G4: FY 2025E | H4: FY 2026E | I4: FY 2027 E
A5: Assets:
A6: Investments in real estate properties | B6: $50,384,328 | C6: $53,005,190 | D6: $81,623,396
A7: Less accumulated depreciation | B7: 6,539,156 | C7: 7,668,187 | D7: 9,036,085
A8: Net investments in real estate properties | B8: 43,845,172 | C8: 45,337,003 | D8: 72,587,311 | E8: =NWC!E5 -> 11,444,127 | F8: =NWC!F5 -> 12,428,783 | G8: =NWC!G5 -> 13,963,087 | H8: =NWC!H5 -> 15,389,528 | I8: =NWC!I5 -> 17,009,797
A9: Investments in and advances to unconsolidated entities | B9: 7,602,014 | C9: 8,610,958 | D9: 9,698,898
A10: Assets held for sale or contribution | B10: 1,070,724 | C10: 669,688 | D10: 531,257
A11: Net Investments in Real Estate (Total Current Assets) | B11: 52,517,910 | C11: 54,617,649 | D11: 82,817,466
A12: Cash and cash equivalents | B12: 598,086 | C12: 556,117 | D12: 278,483
A13: Other assets | B13: 2,949,009 | C13: 3,312,454 | D13: 4,801,499
A14: Total assets | B14: =SUM(B11:B13) -> 56,065,005 | C14: =SUM(C11:C13) -> 58,486,220 | D14: =SUM(D11:D13) -> 87,897,448
A15: Liabilities:
A16: Debt | B16: 16,849,076 | C16: 17,715,054 | D16: 23,875,961
A17: Accounts payable and accrued expenses | B17: 1,143,372 | C17: 1,252,767 | D17: 1,711,885 | E17: =NWC!E10 -> 1,761,331 | F17: =NWC!F10 -> 1,925,312 | G17: =NWC!G10 -> 2,106,734 | H17: =NWC!H10 -> 2,307,505 | I17: =NWC!I10 -> 2,529,741
A18: Other liabilities | B18: 1,261,005 | C18: 1,776,189 | D18: 1,210,000 | E18: =NWC!E13 -> 1,832,739 | F18: =NWC!F13 -> 2,003,528 | G18: =NWC!G13 -> 2,192,320 | H18: =NWC!H13 -> 2,401,248 | I18: =NWC!I13 -> 2,632,513
A19: Total liabilities | B19: =SUM(B16:B18) -> 19,253,453 | C19: =SUM(C16:C18) -> 20,744,010 | D19: =SUM(D16:D18) -> 26,797,846
A20: Prologis, Inc. stockholders’ equity:
A21: Preferred Stock | B21: 63,948 | C21: 63,948 | D21: 63,948
A22: Common Stock | B22: 7,394 | C22: 7,398 | D22: 9,231
A23: Additional paid-in capital | B23: 35,488,634 | C23: 35,561,608 | D23: 54,065,407
A24: Accumulated other comprehensive loss | B24: -1,193,739 | C24: (878,253) | D24: -443,609
A25: Distributions in excess of net earnings | B25: -2,394,690 | C25: (1,327,828) | D25: -457,695
A26: Total Prologis, Inc. stockholders’ equity | B26: 31,971,547 | C26: 33,426,873 | D26: 53,237,282
A27: Noncontrolling interests | B27: 4,353,033 | C27: 4,315,337 | D27: 4,625,811
A28: Total Equity | B28: =SUM(B26:B27) -> 36,324,580 | C28: =SUM(C26:C27) -> 37,742,210 | D28: =SUM(D26:D27) -> 57,863,093
A29: Total liabilities and equity | B29: =B19+B28 -> 55,578,033 | C29: =C19+C28 -> 58,486,220 | D29: =D19+D28 -> 84,660,939

Sheet Consolidated Statements of Cash
A1: Prologis Inc. (NYSE: PLD)
A2: Consolidated Statements of Cash Flows (in thousands) | B2: FY 2020 | C2: FY 2021 | D2: FY 2022 | E2: FY 2023E | F2: FY 2024E | G2: FY 2025E | H2: FY 2026E | I2: FY 2027 E
A3: Operating activities:
A4: Net Income | B4: $ 1,616,630 | C4: $ 3,148,590 | D4: $ 3,555,398
A5: Adjustments to reconcile net earnings to net cash provided by operating activities:
A6: Straight-lined rents and amortization of above and below market leases | B6: (126,328) | C6: (148,239) | D6: (267,709)
A7: Equity-based compensation awards | B7: 109,831 | C7: 113,028 | D7: 175,356
A8: Depreciation and amortization | B8: 1,561,969 | C8: 1,577,942 | D8: 1,812,777 | E8: =-E28*E9 -> 849,432 | F8: =-F28*F9 -> 948,154 | G8: 964,840 | H8: 1,070,743 | I8: 1,048,361
A9: % of CapEx | B9: =B8/-SUM(B23:B27) -> 125% | C9: =C8/-SUM(C23:C27) -> 128% | D9: =D8/-SUM(D23:D27) -> 44% | E9: 49% | F9: 49% | G9: 45% | H9: 45% | I9: 40%
A10: Earnings from unconsolidated entities, net | B10: (297,370) | C10: (404,255) | D10: (310,872)
A11: Operating distributions from unconsolidated entities | B11: 450,622 | C11: 440,034 | D11: 410,483
A12: Decrease (increase) in operating receivables from unconsolidated entities | B12: 14,670 | C12: (14,223) | D12: (63,947)
A13: Amortization of debt discounts and debt issuance costs, net | B13: 7,859 | C13: 8,656 | D13: 23,736
A14: Gains on dispositions of development properties and land, net | B14: (464,942) | C14: (817,017) | D14: (597,745)
A15: Gains on other dispositions of investments in real estate, net | B15: (252,195) | C15: (772,570) | D15: (589,391)
A16: Unrealized foreign currency and derivative losses (gains), net | B16: 160,739 | C16: (173,026) | D16: (92,201)
A17: Losses on early extinguishment of debt, net | B17: 188,290 | C17: 187,453 | D17: 20,184
A18: Deferred income tax expense | B18: 744 | C18: 1,322 | D18: 12,638
A19: Increase in accounts receivable and other assets | B19: (127,619) | C19: (328,511) | D19: (71,307)
A20: Increase in accounts payable and accrued expenses and other liabilities | B20: 94,105 | C20: 176,858 | D20: 109,030
A21: Net cash provided by operating activities | B21: =SUM(B4:B8,B10:B20) -> 2,937,005 | C21: =SUM(C4:C8,C10:C20) -> 2,996,042 | D21: =SUM(D4:D8,D10:D20) -> 4,126,430
A22: Investing activities:
A23: Real estate development | B23: (1,920,218) | C23: (2,639,872) | D23: (3,118,379)
A24: Real estate acquisitions | B24: (1,239,034) | C24: (2,320,448) | D24: (2,492,108)
A25: Tenant improvements and lease commissions on previously leased space | B25: (221,491) | C25: (329,059) | D25: (339,234)
A26: Property improvements | B26: (149,491) | C26: (169,933) | D26: (211,358)
A27: Proceeds from dispositions and contributions of real estate | B27: 2,281,940 | C27: 4,222,290 | D27: 2,063,623
A28: Capital Expenditures | B28: =SUM(B23:B27) -> (1,248,294) | C28: =SUM(C23:C27) -> (1,237,022) | D28: (4,097,456) | E28: =-'Income Statement'!E9*'Consolidated Statements of Cash'!E29 -> (1,733,534.50) | F28: =-'Income Statement'!F9*'Consolidated Statements of Cash'!F29 -> (1,935,007.46) | G28: =-'Income Statement'!G9*'Consolidated Statements of Cash'!G29 -> (2,144,087.99) | H28: =-'Income Statement'!H9*'Consolidated Statements of Cash'!H29 -> (2,379,427.93) | I28: =-'Income Statement'!I9*'Consolidated Statements of Cash'!I29 -> (2,620,901.87)
A29: % of Sales | B29: =-B28/'Income Statement'!B9 -> 28.12% | C29: =-C28/'Income Statement'!C9 -> 25.99% | D29: =-D28/'Income Statement'!D9 -> 68.59% | E29: 26.00% | F29: 26.00% | G29: 26.00% | H29: 26.00% | I29: 26.00%
A30: Investments in and advances to unconsolidated entities | B30: (385,936) | C30: (798,103) | D30: (442,366)
A31: Return of investment from unconsolidated entities | B31: 257,065 | C31: 58,275 | D31: 76,994
A32: Proceeds from repayment of notes receivable backed by real estate | B32: 4,312 | C32: 0 | D32: 0
A33: Proceeds from the settlement of net investment hedges | B33: 2,352 | C33: 3,305 | D33: 59,281
A34: Payments on the settlement of net investment hedges | B34: (9,034) | C34: (16,513) | D34: (3,458)
A35: Net cash used in investing activities | B35: =SUM(B23:B24,B25:B34) -> (2,627,829) | C35: =SUM(C23:C24,C25:C34) -> (3,227,080) | D35: =SUM(D23:D24,D25:D34) -> (8,504,460)
A36: Financing activities:
A37: Proceeds from issuance of common stock/units | B37: 2,217 | C37: 743 | D37: 0
A38: Repurchase and retirement of common stock | B38: (34,829) | C38: 0 | D38: 0
A39: Repurchase of preferred stock | B39: (7,200) | C39: 0 | D39: 0
A40: Dividends/distributions paid on common and preferred stock/units | B40: (1,722,989) | C40: (1,872,861) | D40: (2,494,723)
A41: Noncontrolling interests contributions | B41: 917,092 | C41: 74,404 | D41: 13,295
A42: Noncontrolling interests distributions | B42: (361,636) | C42: (375,054) | D42: (270,109)
A43: Settlement of noncontrolling interests | B43: (116,978) | C43: (153,236) | D43: (88,980)
A44: Tax paid with shares withheld | B44: (24,887) | C44: (19,855) | D44: (27,688)
A45: Debt and equity issuance costs paid | B45: (54,204) | C45: (23,318) | D45: (45,654)
A46: Net proceeds from (payments on) credit facilities | B46: (10,959) | C46: 323,336 | D46: 294,164
A47: Repurchase of and payments on debt | B47: (6,782,306) | C47: (2,560,174) | D47: (1,381,005)
A48: Proceeds from the issuance of debt | B48: 7,824,517 | C48: 3,597,690 | D48: 4,116,489
A49: Net cash provided by (used in) financing activities | B49: =SUM(B37:B48) -> (372,162) | C49: =SUM(C37:C48) -> (1,008,325) | D49: =SUM(D37:D48) -> 115,789
A50: Effect of foreign currency exchange rate changes on cash | B50: 18,718 | C50: (39,628) | D50: (20,796)
A51: Net decrease in cash and cash equivalents | B51: =B53-B52 -> (490,769) | C51: =C53-C52 -> (41,969) | D51: =D53-D52 -> (277,634)
A52: Cash and cash equivalents, beginning of year | B52: 1,088,855 | C52: 598,086 | D52: 556,117
A53: Cash and cash equivalents, end of year | B53: 598,086 | C53: 556,117 | D53: 278,483

Sheet Revenue Build
A3: Prologis Inc. (NYSE: PLD)
A4: Revenue Build (in thousands) | B4: FY 2020 | C4: FY 2021 | D4: FY 2022 | E4: FY 2023E | F4: FY 2024E | G4: FY 2025E | H4: FY 2026E | I4: FY 2027E
A5: Rental | B5: ='Income Statement'!B6 -> $ 3,791,131 | C5: ='Income Statement'!C6 -> $ 4,147,994 | D5: ='Income Statement'!D6 -> $ 4,913,171 | E5: =D5*(1+E6) -> $ 5,502,752 | F5: =E5*(1+F6) -> $6,163,082 | G5: $6,841,021 | H5: $7,593,533 | I5: $8,352,886
A6: % Growth | C6: =(C5-B5)/B5 -> 9% | D6: =(D5-C5)/C5 -> 18% | E6: 12% | F6: 12% | G6: 11% | H6: 11% | I6: 10%
A7: Strategic capital | B7: ='Income Statement'!B7 -> 636,987 | C7: ='Income Statement'!C7 -> 590,750 | D7: ='Income Statement'!D7 -> 1,039,585 | E7: =D7*(1+E8) -> $1,143,544 | F7: =E7*(1+F8) -> $1,257,898 | G7: $1,383,688 | H7: =G7*(1+H8) -> $1,535,893 | I7: =H7*(1+I8) -> $1,704,842
A8: % Growth | C8: =(C7-B7)/B7 -> -7% | D8: =(D7-C7)/C7 -> 76% | E8: 10% | F8: 10% | G8: 10% | H8: 11% | I8: 11%
A9: Development management and other | B9: ='Income Statement'!B8 -> 10,617 | C9: ='Income Statement'!C8 -> 20,696 | D9: ='Income Statement'!D8 -> 20,936 | E9: =D9*(1+E10) -> $21,145 | F9: =E9*(1+F10) -> $21,357 | G9: $21,784 | H9: $22,220 | I9: $22,664
A10: % Growth | C10: =(C9-B9)/B9 -> 95% | D10: =(D9-C9)/C9 -> 1% | E10: 1% | F10: 1% | G10: 2% | H10: 2% | I10: 2%
A11: Total revenues | B11: =B5+B7+B9 -> 4,438,735 | C11: =C5+C7+C9 -> 4,759,440 | D11: 5,973,692 | E11: 6,667,440 | F11: 7,442,336 | G11: 8,246,492 | H11: 9,151,646 | I11: 10,080,392
A12: % Growth | C12: =(C11-B11)/B11 -> 7% | D12: =(D11-C11)/C11 -> 26% | E12: =(E11-D11)/D11 -> 12% | F12: 12% | G12: 11% | H12: 11% | I12: 10%

Sheet NWC
A3: Prologis Inc. (NYSE: PLD)
A4: NWC (in thousands) | B4: FY 2020 | C4: FY 2021 | D4: FY 2022 | E4: FY 2023E | F4: FY 2024E | G4: FY 2025E | H4: FY 2026E | I4: FY 2027E
A5: Investments in and advances to unconsolidated entities | B5: ='Consolidated Balance Sheets'!B9 -> 7,602,014 | C5: ='Consolidated Balance Sheets'!C9 -> 8,610,958 | D5: ='Consolidated Balance Sheets'!D9 -> 9,698,898 | E5: =E7/365*E6 -> 11,444,127 | F5: =F7/365*F6 -> 12,428,783 | G5: 13,963,087 | H5: 15,389,528 | I5: 17,009,797
A6: Revenue | B6: ='Income Statement'!B9 -> 4,438,735 | C6: ='Income Statement'!C9 -> 4,759,440 | D6: ='Income Statement'!D9 -> 5,973,692 | E6: ='Income Statement'!E9 -> 6,667,440 | F6: ='Income Statement'!F9 -> 7,442,336 | G6: ='Income Statement'!G9 -> 8,246,492 | H6: ='Income Statement'!H9 -> 9,151,646 | I6: ='Income Statement'!I9 -> 10,080,392
A7: DSO | C7: =(C5/C6)*365 -> 660 | D7: =(D5/D6)*365 -> 593 | E7: =AVERAGE(C7:D7) -> 626 | F7: =AVERAGE(D7:E7) -> 610 | G7: 618 | H7: 614 | I7: 616
A8: Total Current Assets | B8: =B5 -> 7,602,014 | C8: 8,610,958 | D8: 9,698,898 | E8: 11,444,127 | F8: 12,428,783 | G8: 13,963,087 | H8: 15,389,528 | I8: 17,009,797
A10: Accounts Payable | B10: ='Consolidated Balance Sheets'!B17 -> 1,143,372 | C10: ='Consolidated Balance Sheets'!C17 -> 1,252,767 | D10: ='Consolidated Balance Sheets'!D17 -> 1,711,885 | E10: =E12/365*E11 -> 1,761,331 | F10: =F12/365*F11 -> 1,925,312 | G10: =G12/365*G11 -> 2,106,734 | H10: =H12/365*H11 -> 2,307,505 | I10: =I12/365*I11 -> 2,529,741
A11: COGS (Property + Service) | B11: =SUM('Income Statement'!B12:B14) -> 1,170,104 | C11: =SUM('Income Statement'!C12:C14) -> 1,248,487 | D11: =SUM('Income Statement'!D12:D14) -> 1,509,094 | E11: ='Income Statement'!E16 -> 1,647,792 | F11: ='Income Statement'!F16 -> 1,801,201 | G11: ='Income Statement'!G16 -> 1,970,928 | H11: ='Income Statement'!H16 -> 2,158,757 | I11: ='Income Statement'!I16 -> 2,366,668
A12: DPO | B12: =(B10/B11)*365 -> 357 | C12: =(C10/C11)*365 -> 366 | D12: =(D10/D11)*365 -> 414 | E12: =AVERAGE(C12:D12) -> 390 | F12: 390 | G12: 390 | H12: 390 | I12: 390
A13: Other Acrrued Liabilities | B13: ='Consolidated Balance Sheets'!B18 -> 1,261,005 | C13: ='Consolidated Balance Sheets'!C18 -> 1,776,189 | D13: ='Consolidated Balance Sheets'!D18 -> 1,210,000 | E13: =E15/365*E14 -> 1,832,739 | F13: =F15/365*F14 -> 2,003,528 | G13: =G15/365*G14 -> 2,192,320 | H13: =H15/365*H14 -> 2,401,248 | I13: =I15/365*I14 -> 2,632,513
A14: COGS (Property + Service) | B14: =B11 -> 1,170,104 | C14: 1,248,487 | D14: 1,509,094 | E14: 1,647,792 | F14: 1,801,201 | G14: 1,970,928 | H14: 2,158,757 | I14: 2,366,668
A15: DPO | B15: =B13/B14*365 -> 393 | C15: =C13/C14*365 -> 519 | D15: =D13/D14*365 -> 293 | E15: =AVERAGE(C15:D15) -> 406 | F15: 406 | G15: 406 | H15: 406 | I15: 406
A16: Total Current Liabilities | B16: =B10+B13 -> 2,404,377 | C16: 3,028,956 | D16: 2,921,885 | E16: 3,594,071 | F16: 3,928,840 | G16: 4,299,054 | H16: 4,708,753 | I16: 5,162,254
A18: NWC | B18: =B8-B16 -> 5,197,637 | C18: =C8-C16 -> 5,582,002 | D18: =D8-D16 -> 6,777,013 | E18: =E8-E16 -> 7,850,056 | F18: 8,499,943 | G18: 9,664,033 | H18: 10,680,775 | I18: 11,847,542
A19: Change in NWC | C19: =C18-B18 -> 384,365 | D19: 1,195,011 | E19: 1,073,043 | F19: 649,887 | G19: 1,164,090 | H19: 1,016,742 | I19: 1,166,767

Sheet Beta
C2: SYP | G2: PLD
B3: Date | C3: Price | D3: Change % | F3: Date | G3: Price | H3: Change % | K3: Covariance | L3: =_xlfn.COVARIANCE.S(D4:D757,H4:H757) -> 0.0001850993159
B4: 2020-03-20 | C4: 2,304.92 | D4: =(C5-C4)/C4 -> -2.93% | F4: 2020-03-20 | G4: 62.82 | H4: =(G5-G4)/G4 -> 0.88% | K4: Variance | L4: =_xlfn.VAR.S(D4:D756) -> 0.00018178516
B5: 2020-03-23 | C5: 2,237.40 | D5: =(C6-C5)/C5 -> 9.38% | F5: 2020-03-23 | G5: 63.37 | H5: 11.33% | K5: Beta | L5: =L3/L4 -> 1.018231168
B6: 2020-03-24 | C6: 2,447.33 | D6: 1.15% | F6: 2020-03-24 | G6: 70.55 | H6: 2.32%
B7: 2020-03-25 | C7: 2,475.56 | D7: 6.24% | F7: 2020-03-25 | G7: 72.19 | H7: 7.62%
B8: 2020-03-26 | C8: 2,630.07 | D8: -3.37% | F8: 2020-03-26 | G8: 77.69 | H8: 1.91%
B9: 2020-03-27 | C9: 2,541.47 | D9: 3.35% | F9: 2020-03-27 | G9: 79.17 | H9: 4.69%
B10: 2020-03-30 | C10: 2,626.65 | D10: -1.60% | F10: 2020-03-30 | G10: 82.88 | H10: -3.03%
B11: 2020-03-31 | C11: 2,584.59 | D11: -4.41% | F11: 2020-03-31 | G11: 80.37 | H11: -8.85%
B12: 2020-04-01 | C12: 2,470.50 | D12: 2.28% | F12: 2020-04-01 | G12: 73.26 | H12: 3.07%
B13: 2020-04-02 | C13: 2,526.90 | D13: -1.51% | F13: 2020-04-02 | G13: 75.51 | H13: -2.54%
B14: 2020-04-03 | C14: 2,488.65 | D14: 7.03% | F14: 2020-04-03 | G14: 73.59 | H14: 9.02%
B15: 2020-04-06 | C15: 2,663.68 | D15: -0.16% | F15: 2020-04-06 | G15: 80.23 | H15: 0.90%
B16: 2020-04-07 | C16: 2,659.41 | D16: 3.41% | F16: 2020-04-07 | G16: 80.95 | H16: 6.46%
B17: 2020-04-08 | C17: 2,749.98 | D17: 1.45% | F17: 2020-04-08 | G17: 86.18 | H17: 6.44%
B18: 2020-04-09 | C18: 2,789.82 | D18: -1.01% | F18: 2020-04-09 | G18: 91.73 | H18: -5.80%
B19: 2020-04-13 | C19: 2,761.63 | D19: 3.06% | F19: 2020-04-13 | G19: 86.41 | H19: 3.17%
B20: 2020-04-14 | C20: 2,846.06 | D20: -2.20% | F20: 2020-04-14 | G20: 89.15 | H20: -2.93%
B21: 2020-04-15 | C21: 2,783.36 | D21: 0.58% | F21: 2020-04-15 | G21: 86.54 | H21: 1.92%
B22: 2020-04-16 | C22: 2,799.55 | D22: 2.68% | F22: 2020-04-16 | G22: 88.2 | H22: 2.29%
B23: 2020-04-17 | C23: 2,874.56 | D23: -1.79% | F23: 2020-04-17 | G23: 90.22 | H23: -1.91%
B24: 2020-04-20 | C24: 2,823.16 | D24: -3.07% | F24: 2020-04-20 | G24: 88.5 | H24: 0.56%
B25: 2020-04-21 | C25: 2,736.56 | D25: 2.29% | F25: 2020-04-21 | G25: 89 | H25: -1.27%
B26: 2020-04-22 | C26: 2,799.31 | D26: -0.05% | F26: 2020-04-22 | G26: 87.87 | H26: -1.27%
B27: 2020-04-23 | C27: 2,797.80 | D27: 1.39% | F27: 2020-04-23 | G27: 86.75 | H27: 2.64%
B28: 2020-04-24 | C28: 2,836.74 | D28: 1.47% | F28: 2020-04-24 | G28: 89.04 | H28: 3.14%
B29: 2020-04-27 | C29: 2,878.48 | D29: -0.52% | F29: 2020-04-27 | G29: 91.84 | H29: -2.45%
B30: 2020-04-28 | C30: 2,863.39 | D30: 2.66% | F30: 2020-04-28 | G30: 89.59 | H30: 0.64%
B31: 2020-04-29 | C31: 2,939.51 | D31: -0.92% | F31: 2020-04-29 | G31: 90.16 | H31: -1.03%
B32: 2020-04-30 | C32: 2,912.43 | D32: -2.81% | F32: 2020-04-30 | G32: 89.23 | H32: -2.67%
B33: 2020-05-01 | C33: 2,830.71 | D33: 0.42% | F33: 2020-05-01 | G33: 86.85 | H33: 0.32%
B34: 2020-05-04 | C34: 2,842.74 | D34: 0.90% | F34: 2020-05-04 | G34: 87.13 | H34: 0.70%
B35: 2020-05-05 | C35: 2,868.44 | D35: -0.70% | F35: 2020-05-05 | G35: 87.74 | H35: -0.91%
B36: 2020-05-06 | C36: 2,848.42 | D36: 1.15% | F36: 2020-05-06 | G36: 86.94 | H36: 1.30%
B37: 2020-05-07 | C37: 2,881.19 | D37: 1.69% | F37: 2020-05-07 | G37: 88.07 | H37: 2.16%
B38: 2020-05-08 | C38: 2,929.80 | D38: 0.02% | F38: 2020-05-08 | G38: 89.97 | H38: -1.21%
B39: 2020-05-11 | C39: 2,930.32 | D39: -2.05% | F39: 2020-05-11 | G39: 88.88 | H39: -5.24%
B40: 2020-05-12 | C40: 2,870.12 | D40: -1.75% | F40: 2020-05-12 | G40: 84.22 | H40: -1.64%
B41: 2020-05-13 | C41: 2,820.00 | D41: 1.15% | F41: 2020-05-13 | G41: 82.84 | H41: 1.50%
B42: 2020-05-14 | C42: 2,852.50 | D42: 0.39% | F42: 2020-05-14 | G42: 84.08 | H42: -0.95%
B43: 2020-05-15 | C43: 2,863.70 | D43: 3.15% | F43: 2020-05-15 | G43: 83.28 | H43: 4.26%
B44: 2020-05-18 | C44: 2,953.91 | D44: -1.05% | F44: 2020-05-18 | G44: 86.83 | H44: -2.48%
B45: 2020-05-19 | C45: 2,922.94 | D45: 1.67% | F45: 2020-05-19 | G45: 84.68 | H45: 2.88%
B46: 2020-05-20 | C46: 2,971.61 | D46: -0.78% | F46: 2020-05-20 | G46: 87.12 | H46: -0.83%
B47: 2020-05-21 | C47: 2,948.51 | D47: 0.24% | F47: 2020-05-21 | G47: 86.4 | H47: 1.33%
B48: 2020-05-22 | C48: 2,955.45 | D48: 1.23% | F48: 2020-05-22 | G48: 87.55 | H48: 2.82%
B49: 2020-05-26 | C49: 2,991.77 | D49: 1.48% | F49: 2020-05-26 | G49: 90.02 | H49: 1.93%
B50: 2020-05-27 | C50: 3,036.13 | D50: -0.21% | F50: 2020-05-27 | G50: 91.76 | H50: 1.41%
B51: 2020-05-28 | C51: 3,029.73 | D51: 0.48% | F51: 2020-05-28 | G51: 93.05 | H51: -1.67%
B52: 2020-05-29 | C52: 3,044.31 | D52: 0.38% | F52: 2020-05-29 | G52: 91.5 | H52: 2.40%
B53: 2020-06-01 | C53: 3,055.73 | D53: 0.82% | F53: 2020-06-01 | G53: 93.7 | H53: 1.88%
B54: 2020-06-02 | C54: 3,080.82 | D54: 1.36% | F54: 2020-06-02 | G54: 95.46 | H54: 1.95%
B55: 2020-06-03 | C55: 3,122.87 | D55: -0.34% | F55: 2020-06-03 | G55: 97.32 | H55: -4.08%
B56: 2020-06-04 | C56: 3,112.35 | D56: 2.62% | F56: 2020-06-04 | G56: 93.35 | H56: 2.53%
B57: 2020-06-05 | C57: 3,193.93 | D57: 1.20% | F57: 2020-06-05 | G57: 95.71 | H57: 2.15%
B58: 2020-06-08 | C58: 3,232.39 | D58: -0.78% | F58: 2020-06-08 | G58: 97.77 | H58: -0.45%
B59: 2020-06-09 | C59: 3,207.18 | D59: -0.53% | F59: 2020-06-09 | G59: 97.33 | H59: -0.95%
B60: 2020-06-10 | C60: 3,190.14 | D60: -5.89% | F60: 2020-06-10 | G60: 96.41 | H60: -5.70%
B61: 2020-06-11 | C61: 3,002.10 | D61: 1.31% | F61: 2020-06-11 | G61: 90.91 | H61: 3.90%
B62: 2020-06-12 | C62: 3,041.31 | D62: 0.83% | F62: 2020-06-12 | G62: 94.46 | H62: -0.07%
B63: 2020-06-15 | C63: 3,066.59 | D63: 1.90% | F63: 2020-06-15 | G63: 94.39 | H63: 2.66%
B64: 2020-06-16 | C64: 3,124.74 | D64: -0.36% | F64: 2020-06-16 | G64: 96.9 | H64: -0.21%
B65: 2020-06-17 | C65: 3,113.49 | D65: 0.06% | F65: 2020-06-17 | G65: 96.7 | H65: -1.66%
B66: 2020-06-18 | C66: 3,115.34 | D66: -0.56% | F66: 2020-06-18 | G66: 95.09 | H66: -3.39%
B67: 2020-06-19 | C67: 3,097.74 | D67: 0.65% | F67: 2020-06-19 | G67: 91.87 | H67: 0.75%
B68: 2020-06-22 | C68: 3,117.86 | D68: 0.43% | F68: 2020-06-22 | G68: 92.56 | H68: =(G69-G68)/G68 -> -1.20%
B69: 2020-06-23 | C69: 3,131.29 | D69: =(C70-C69)/C69 -> -2.59% | F69: 2020-06-23 | G69: 91.45 | H69: -1.80%
B70: 2020-06-24 | C70: 3,050.33 | D70: 1.10% | F70: 2020-06-24 | G70: 89.8 | H70: 1.86%
B71: 2020-06-25 | C71: 3,083.76 | D71: -2.42% | F71: 2020-06-25 | G71: 91.47 | H71: -1.79%
B72: 2020-06-26 | C72: 3,009.05 | D72: 1.47% | F72: 2020-06-26 | G72: 89.83 | H72: 1.49%
B73: 2020-06-29 | C73: 3,053.24 | D73: 1.54% | F73: 2020-06-29 | G73: 91.17 | H73: 2.37%
B74: 2020-06-30 | C74: 3,100.29 | D74: 0.50% | F74: 2020-06-30 | G74: 93.33 | H74: 1.95%
B75: 2020-07-01 | C75: 3,115.86 | D75: 0.45% | F75: 2020-07-01 | G75: 95.15 | H75: 0.42%
B76: 2020-07-02 | C76: 3,130.01 | D76: 1.59% | F76: 2020-07-02 | G76: 95.55 | H76: 0.01%
B77: 2020-07-06 | C77: 3,179.72 | D77: -1.08% | F77: 2020-07-06 | G77: 95.56 | H77: -0.76%
B78: 2020-07-07 | C78: 3,145.32 | D78: 0.78% | F78: 2020-07-07 | G78: 94.83 | H78: 0.98%
B79: 2020-07-08 | C79: 3,169.94 | D79: -0.56% | F79: 2020-07-08 | G79: 95.76 | H79: 0.85%
B80: 2020-07-09 | C80: 3,152.05 | D80: 1.05% | F80: 2020-07-09 | G80: 96.57 | H80: -1.81%
B81: 2020-07-10 | C81: 3,185.04 | D81: -0.94% | F81: 2020-07-10 | G81: 94.82 | H81: -1.32%
B82: 2020-07-13 | C82: 3,155.22 | D82: 1.34% | F82: 2020-07-13 | G82: 93.57 | H82: -0.20%
B83: 2020-07-14 | C83: 3,197.52 | D83: 0.91% | F83: 2020-07-14 | G83: 93.38 | H83: 0.39%
B84: 2020-07-15 | C84: 3,226.56 | D84: -0.34% | F84: 2020-07-15 | G84: 93.74 | H84: -1.75%
B85: 2020-07-16 | C85: 3,215.57 | D85: 0.28% | F85: 2020-07-16 | G85: 92.1 | H85: 3.52%
B86: 2020-07-17 | C86: 3,224.73 | D86: 0.84% | F86: 2020-07-17 | G86: 95.34 | H86: -0.64%
B87: 2020-07-20 | C87: 3,251.84 | D87: 0.17% | F87: 2020-07-20 | G87: 94.73 | H87: 3.38%
B88: 2020-07-21 | C88: 3,257.30 | D88: 0.57% | F88: 2020-07-21 | G88: 97.93 | H88: 0.46%
B89: 2020-07-22 | C89: 3,276.02 | D89: -1.23% | F89: 2020-07-22 | G89: 98.38 | H89: 0.53%
B90: 2020-07-23 | C90: 3,235.66 | D90: -0.62% | F90: 2020-07-23 | G90: 98.9 | H90: 1.02%
B91: 2020-07-24 | C91: 3,215.63 | D91: 0.74% | F91: 2020-07-24 | G91: 99.91 | H91: 1.85%
B92: 2020-07-27 | C92: 3,239.41 | D92: -0.65% | F92: 2020-07-27 | G92: 101.76 | H92: 0.77%
B93: 2020-07-28 | C93: 3,218.44 | D93: 1.24% | F93: 2020-07-28 | G93: 102.54 | H93: 3.54%
B94: 2020-07-29 | C94: 3,258.44 | D94: -0.38% | F94: 2020-07-29 | G94: 106.17 | H94: -0.92%
B95: 2020-07-30 | C95: 3,246.22 | D95: 0.77% | F95: 2020-07-30 | G95: 105.19 | H95: 0.22%
B96: 2020-07-31 | C96: 3,271.12 | D96: 0.72% | F96: 2020-07-31 | G96: 105.42 | H96: -0.42%
B97: 2020-08-03 | C97: 3,294.61 | D97: 0.36% | F97: 2020-08-03 | G97: 104.98 | H97: 0.58%
B98: 2020-08-04 | C98: 3,306.51 | D98: 0.64% | F98: 2020-08-04 | G98: 105.59 | H98: -0.65%
B99: 2020-08-05 | C99: 3,327.77 | D99: 0.64% | F99: 2020-08-05 | G99: 104.9 | H99: -0.02%
B100: 2020-08-06 | C100: 3,349.16 | D100: 0.06% | F100: 2020-08-06 | G100: 104.88 | H100: 0.18%
B101: 2020-08-07 | C101: 3,351.28 | D101: 0.27% | F101: 2020-08-07 | G101: 105.07 | H101: -1.28%
B102: 2020-08-10 | C102: 3,360.47 | D102: -0.80% | F102: 2020-08-10 | G102: 103.73 | H102: -3.10%
B103: 2020-08-11 | C103: 3,333.69 | D103: 1.40% | F103: 2020-08-11 | G103: 100.51 | H103: 2.36%
B104: 2020-08-12 | C104: 3,380.35 | D104: -0.20% | F104: 2020-08-12 | G104: 102.88 | H104: -0.23%
B105: 2020-08-13 | C105: 3,373.43 | D105: -0.02% | F105: 2020-08-13 | G105: 102.64 | H105: -0.31%
B106: 2020-08-14 | C106: 3,372.85 | D106: 0.27% | F106: 2020-08-14 | G106: 102.32 | H106: 1.85%
B107: 2020-08-17 | C107: 3,381.99 | D107: 0.23% | F107: 2020-08-17 | G107: 104.21 | H107: -0.54%
B108: 2020-08-18 | C108: 3,389.78 | D108: -0.44% | F108: 2020-08-18 | G108: 103.65 | H108: -1.84%
B109: 2020-08-19 | C109: 3,374.85 | D109: 0.32% | F109: 2020-08-19 | G109: 101.74 | H109: 0.93%
B110: 2020-08-20 | C110: 3,385.51 | D110: 0.34% | F110: 2020-08-20 | G110: 102.69 | H110: 0.34%
B111: 2020-08-21 | C111: 3,397.16 | D111: 1.00% | F111: 2020-08-21 | G111: 103.04 | H111: -1.01%
B112: 2020-08-24 | C112: 3,431.28 | D112: 0.36% | F112: 2020-08-24 | G112: 102 | H112: -0.02%
B113: 2020-08-25 | C113: 3,443.62 | D113: 1.02% | F113: 2020-08-25 | G113: 101.98 | H113: -0.93%
B114: 2020-08-26 | C114: 3,478.73 | D114: 0.17% | F114: 2020-08-26 | G114: 101.03 | H114: 0.86%
B115: 2020-08-27 | C115: 3,484.55 | D115: 0.67% | F115: 2020-08-27 | G115: 101.9 | H115: 0.58%
B116: 2020-08-28 | C116: 3,508.01 | D116: -0.22% | F116: 2020-08-28 | G116: 102.49 | H116: -0.61%
B117: 2020-08-31 | C117: 3,500.31 | D117: 0.75% | F117: 2020-08-31 | G117: 101.86 | H117: -0.35%
B118: 2020-09-01 | C118: 3,526.65 | D118: 1.54% | F118: 2020-09-01 | G118: 101.5 | H118: 3.03%
B119: 2020-09-02 | C119: 3,580.84 | D119: -3.51% | F119: 2020-09-02 | G119: 104.58 | H119: -2.84%
B120: 2020-09-03 | C120: 3,455.06 | D120: -0.81% | F120: 2020-09-03 | G120: 101.61 | H120: -0.84%
B121: 2020-09-04 | C121: 3,426.96 | D121: -2.78% | F121: 2020-09-04 | G121: 100.76 | H121: -1.95%
B122: 2020-09-08 | C122: 3,331.84 | D122: 2.01% | F122: 2020-09-08 | G122: 98.8 | H122: 2.21%
B123: 2020-09-09 | C123: 3,398.96 | D123: -1.76% | F123: 2020-09-09 | G123: 100.98 | H123: -0.96%
B124: 2020-09-10 | C124: 3,339.19 | D124: 0.05% | F124: 2020-09-10 | G124: 100.01 | H124: 0.20%
B125: 2020-09-11 | C125: 3,340.97 | D125: 1.27% | F125: 2020-09-11 | G125: 100.21 | H125: 1.74%
B126: 2020-09-14 | C126: 3,383.54 | D126: 0.52% | F126: 2020-09-14 | G126: 101.95 | H126: 0.77%
B127: 2020-09-15 | C127: 3,401.20 | D127: -0.46% | F127: 2020-09-15 | G127: 102.73 | H127: -0.67%
B128: 2020-09-16 | C128: 3,385.49 | D128: -0.84% | F128: 2020-09-16 | G128: 102.04 | H128: -0.92%
B129: 2020-09-17 | C129: 3,357.01 | D129: -1.12% | F129: 2020-09-17 | G129: 101.1 | H129: -1.56%
B130: 2020-09-18 | C130: 3,319.47 | D130: -1.16% | F130: 2020-09-18 | G130: 99.52 | H130: -2.98%
B131: 2020-09-21 | C131: 3,281.06 | D131: 1.05% | F131: 2020-09-21 | G131: 96.55 | H131: 2.73%
B132: 2020-09-22 | C132: 3,315.57 | D132: -2.37% | F132: 2020-09-22 | G132: 99.19 | H132: =(G133-G132)/G132 -> -3.92%
B133: 2020-09-23 | C133: 3,236.92 | D133: =(C134-C133)/C133 -> 0.30% | F133: 2020-09-23 | G133: 95.3 | H133: 0.06%
B134: 2020-09-24 | C134: 3,246.59 | D134: 1.60% | F134: 2020-09-24 | G134: 95.36 | H134: 2.42%
B135: 2020-09-25 | C135: 3,298.46 | D135: 1.61% | F135: 2020-09-25 | G135: 97.67 | H135: 2.42%
B136: 2020-09-28 | C136: 3,351.60 | D136: -0.48% | F136: 2020-09-28 | G136: 100.03 | H136: -0.42%
B137: 2020-09-29 | C137: 3,335.47 | D137: 0.83% | F137: 2020-09-29 | G137: 99.61 | H137: 1.01%
B138: 2020-09-30 | C138: 3,363.00 | D138: 0.53% | F138: 2020-09-30 | G138: 100.62 | H138: 1.53%
B139: 2020-10-01 | C139: 3,380.80 | D139: -0.96% | F139: 2020-10-01 | G139: 102.16 | H139: 2.02%
B140: 2020-10-02 | C140: 3,348.44 | D140: 1.80% | F140: 2020-10-02 | G140: 104.22 | H140: 0.93%
B141: 2020-10-05 | C141: 3,408.63 | D141: -1.40% | F141: 2020-10-05 | G141: 105.19 | H141: -0.67%
B142: 2020-10-06 | C142: 3,360.95 | D142: 1.74% | F142: 2020-10-06 | G142: 104.48 | H142: 1.23%
B143: 2020-10-07 | C143: 3,419.45 | D143: 0.80% | F143: 2020-10-07 | G143: 105.76 | H143: 1.02%
B144: 2020-10-08 | C144: 3,446.83 | D144: 0.88% | F144: 2020-10-08 | G144: 106.84 | H144: 0.07%
B145: 2020-10-09 | C145: 3,477.13 | D145: 1.64% | F145: 2020-10-09 | G145: 106.91 | H145: 1.29%
B146: 2020-10-12 | C146: 3,534.22 | D146: -0.63% | F146: 2020-10-12 | G146: 108.29 | H146: -1.53%
B147: 2020-10-13 | C147: 3,511.93 | D147: -0.66% | F147: 2020-10-13 | G147: 106.63 | H147: -2.44%
B148: 2020-10-14 | C148: 3,488.67 | D148: -0.15% | F148: 2020-10-14 | G148: 104.03 | H148: 0.91%
B149: 2020-10-15 | C149: 3,483.34 | D149: 0.01% | F149: 2020-10-15 | G149: 104.98 | H149: -0.69%
B150: 2020-10-16 | C150: 3,483.81 | D150: -1.63% | F150: 2020-10-16 | G150: 104.26 | H150: -1.19%
B151: 2020-10-19 | C151: 3,426.92 | D151: 0.47% | F151: 2020-10-19 | G151: 103.02 | H151: 0.50%
B152: 2020-10-20 | C152: 3,443.12 | D152: -0.22% | F152: 2020-10-20 | G152: 103.53 | H152: -0.85%
B153: 2020-10-21 | C153: 3,435.56 | D153: 0.52% | F153: 2020-10-21 | G153: 102.65 | H153: 0.15%
B154: 2020-10-22 | C154: 3,453.49 | D154: 0.34% | F154: 2020-10-22 | G154: 102.8 | H154: 0.43%
B155: 2020-10-23 | C155: 3,465.39 | D155: -1.86% | F155: 2020-10-23 | G155: 103.24 | H155: -2.68%
B156: 2020-10-26 | C156: 3,400.97 | D156: -0.30% | F156: 2020-10-26 | G156: 100.47 | H156: -1.32%
B157: 2020-10-27 | C157: 3,390.68 | D157: -3.53% | F157: 2020-10-27 | G157: 99.14 | H157: -1.64%
B158: 2020-10-28 | C158: 3,271.03 | D158: 1.19% | F158: 2020-10-28 | G158: 97.51 | H158: 2.74%
B159: 2020-10-29 | C159: 3,310.11 | D159: -1.21% | F159: 2020-10-29 | G159: 100.18 | H159: -0.98%
B160: 2020-10-30 | C160: 3,269.96 | D160: 1.23% | F160: 2020-10-30 | G160: 99.2 | H160: 2.69%
B161: 2020-11-02 | C161: 3,310.24 | D161: 1.78% | F161: 2020-11-02 | G161: 101.87 | H161: 2.47%
B162: 2020-11-03 | C162: 3,369.16 | D162: 2.20% | F162: 2020-11-03 | G162: 104.39 | H162: 1.36%
B163: 2020-11-04 | C163: 3,443.44 | D163: 1.95% | F163: 2020-11-04 | G163: 105.81 | H163: 0.07%
B164: 2020-11-05 | C164: 3,510.45 | D164: -0.03% | F164: 2020-11-05 | G164: 105.88 | H164: -0.94%
B165: 2020-11-06 | C165: 3,509.44 | D165: 1.17% | F165: 2020-11-06 | G165: 104.89 | H165: -5.03%
B166: 2020-11-09 | C166: 3,550.50 | D166: -0.14% | F166: 2020-11-09 | G166: 99.61 | H166: 0.33%
B167: 2020-11-10 | C167: 3,545.53 | D167: 0.77% | F167: 2020-11-10 | G167: 99.94 | H167: 2.08%
B168: 2020-11-11 | C168: 3,572.66 | D168: -1.00% | F168: 2020-11-11 | G168: 102.02 | H168: 0.59%
B169: 2020-11-12 | C169: 3,537.01 | D169: 1.36% | F169: 2020-11-12 | G169: 102.62 | H169: 0.89%
B170: 2020-11-13 | C170: 3,585.15 | D170: 1.16% | F170: 2020-11-13 | G170: 103.53 | H170: -0.26%
B171: 2020-11-16 | C171: 3,626.91 | D171: -0.48% | F171: 2020-11-16 | G171: 103.26 | H171: 0.91%
B172: 2020-11-17 | C172: 3,609.53 | D172: -1.16% | F172: 2020-11-17 | G172: 104.2 | H172: -2.69%
B173: 2020-11-18 | C173: 3,567.79 | D173: 0.39% | F173: 2020-11-18 | G173: 101.4 | H173: -1.39%
B174: 2020-11-19 | C174: 3,581.87 | D174: -0.68% | F174: 2020-11-19 | G174: 99.99 | H174: 0.28%
B175: 2020-11-20 | C175: 3,557.54 | D175: 0.56% | F175: 2020-11-20 | G175: 100.27 | H175: -0.71%
B176: 2020-11-23 | C176: 3,577.59 | D176: 1.62% | F176: 2020-11-23 | G176: 99.56 | H176: -0.75%
B177: 2020-11-24 | C177: 3,635.41 | D177: -0.16% | F177: 2020-11-24 | G177: 98.81 | H177: 0.20%
B178: 2020-11-25 | C178: 3,629.65 | D178: 0.24% | F178: 2020-11-25 | G178: 99.01 | H178: 1.61%
B179: 2020-11-27 | C179: 3,638.35 | D179: -0.46% | F179: 2020-11-27 | G179: 100.6 | H179: -0.55%
B180: 2020-11-30 | C180: 3,621.63 | D180: 1.13% | F180: 2020-11-30 | G180: 100.05 | H180: 0.15%
B181: 2020-12-01 | C181: 3,662.45 | D181: 0.18% | F181: 2020-12-01 | G181: 100.2 | H181: -2.67%
B182: 2020-12-02 | C182: 3,669.01 | D182: -0.06% | F182: 2020-12-02 | G182: 97.52 | H182: -0.43%
B183: 2020-12-03 | C183: 3,666.72 | D183: 0.88% | F183: 2020-12-03 | G183: 97.1 | H183: 1.61%
B184: 2020-12-04 | C184: 3,699.12 | D184: -0.19% | F184: 2020-12-04 | G184: 98.66 | H184: -1.15%
B185: 2020-12-07 | C185: 3,691.96 | D185: 0.28% | F185: 2020-12-07 | G185: 97.53 | H185: -0.64%
B186: 2020-12-08 | C186: 3,702.25 | D186: -0.79% | F186: 2020-12-08 | G186: 96.91 | H186: -0.50%
B187: 2020-12-09 | C187: 3,672.82 | D187: -0.13% | F187: 2020-12-09 | G187: 96.43 | H187: 0.78%
B188: 2020-12-10 | C188: 3,668.10 | D188: -0.13% | F188: 2020-12-10 | G188: 97.18 | H188: 0.20%
B189: 2020-12-11 | C189: 3,663.46 | D189: -0.44% | F189: 2020-12-11 | G189: 97.37 | H189: -0.51%
B190: 2020-12-14 | C190: 3,647.49 | D190: 1.29% | F190: 2020-12-14 | G190: 96.87 | H190: 2.77%
B191: 2020-12-15 | C191: 3,694.62 | D191: 0.18% | F191: 2020-12-15 | G191: 99.55 | H191: 0.30%
B192: 2020-12-16 | C192: 3,701.17 | D192: 0.58% | F192: 2020-12-16 | G192: 99.85 | H192: 0.73%
B193: 2020-12-17 | C193: 3,722.48 | D193: -0.35% | F193: 2020-12-17 | G193: 100.58 | H193: -2.50%
B194: 2020-12-18 | C194: 3,709.41 | D194: -0.39% | F194: 2020-12-18 | G194: 98.07 | H194: -0.84%
B195: 2020-12-21 | C195: 3,694.92 | D195: -0.21% | F195: 2020-12-21 | G195: 97.25 | H195: 0.41%
B196: 2020-12-22 | C196: 3,687.26 | D196: 0.07% | F196: 2020-12-22 | G196: 97.65 | H196: =(G197-G196)/G196 -> -1.50%
B197: 2020-12-23 | C197: 3,690.01 | D197: =(C198-C197)/C197 -> 0.35% | F197: 2020-12-23 | G197: 96.19 | H197: 1.09%
B198: 2020-12-24 | C198: 3,703.06 | D198: 0.87% | F198: 2020-12-24 | G198: 97.24 | H198: 1.01%
B199: 2020-12-28 | C199: 3,735.36 | D199: -0.22% | F199: 2020-12-28 | G199: 98.22 | H199: -0.51%
B200: 2020-12-29 | C200: 3,727.04 | D200: 0.13% | F200: 2020-12-29 | G200: 97.72 | H200: 1.13%
B201: 2020-12-30 | C201: 3,732.04 | D201: 0.64% | F201: 2020-12-30 | G201: 98.82 | H201: 0.85%
... 556 more rows

Sheet WACC
B2: Prologis Inc. (NYSE: PLD) | E2: EBIT | F2: ='Income Statement'!D29 -> $3,467,538
B3: WACC | E3: Interest Expense | F3: ='Income Statement'!D31 -> $309,037
B4: Beta | C4: =Beta!L5 -> 1.018231168 | E4: Interest Coverage Ratio | F4: =F2/F3 -> 11.22046227
B5: Risk-Free Rate | C5: =F7 -> 3.88%
B6: Expected Market Return | C6: 9.00% | E6: Damodaran Spread | F6: 0.69%
B7: Risk Premium | C7: =C6-C5 -> 5.12% | E7: Risk-Free Rate | F7: 3.88%
B8: Cost of Equity | C8: =C5+(C4*(C6-C5)) -> 9.09% | E8: Cost of Debt | F8: =SUM(F6:F7) -> 4.57%
B10: Pre-Tax Cost of Debt | C10: =C5+F6 -> 4.57% | E10: Current PLD Price | F10: 124.88
B11: Tax Rate | C11: 21.00% | E11: Shares Outstanding | F11: ='Income Statement'!D47 -> 811,608
B12: After-Tax Cost of Debt | C12: =C10*(1-C11) -> 3.61%
B14: Market Capitalization | C14: =F10*F11 -> 101,353,607
B15: Debt Outstanding | C15: ='Consolidated Balance Sheets'!D16 -> 23,875,961
B16: Total Capitalization | C16: =SUM(C14:C15) -> 125,229,568
B17: Weight of Equity | C17: =C14/C16 -> 80.93%
B18: Weight of Debt | C18: =C15/C16 -> 19.07%
B19: WACC | C19: =C8*C17+C12*C18 -> 8.05%

Sheet DCF
B3: Prologis Inc. (NYSE: PLD)
B4: Discounted Cash Flow (In Thousands USD) | C4: 2020 | D4: 2021 | E4: 2022 | F4: 2023E | G4: 2024E | H4: 2025E | I4: 2026E | J4: 2027E
B5: Revenue | C5: ='Revenue Build'!B11 -> 4,438,735 | D5: ='Revenue Build'!C11 -> 4,759,440 | E5: ='Revenue Build'!D11 -> 5,973,692 | F5: ='Revenue Build'!E11 -> 6,667,440 | G5: ='Revenue Build'!F11 -> 7,442,336 | H5: ='Revenue Build'!G11 -> 8,246,492 | I5: ='Revenue Build'!H11 -> 9,151,646 | J5: ='Revenue Build'!I11 -> 10,080,392
B6: % Growth | D6: =D5/C5-1 -> 7% | E6: =E5/D5-1 -> 26% | F6: 12% | G6: 12% | H6: 11% | I6: 11% | J6: 10%
B7: EBIT | C7: ='Income Statement'!B29 -> 2,118,944 | D7: ='Income Statement'!C29 -> 3,206,996 | E7: ='Income Statement'!D29 -> 3,467,538 | F7: ='Income Statement'!E29 -> 3,848,584 | G7: ='Income Statement'!F29 -> 4,390,978 | H7: ='Income Statement'!G29 -> 4,865,430 | I7: ='Income Statement'!H29 -> 5,399,471 | J7: ='Income Statement'!I29 -> 5,947,431
B8: EBIT Margin | D8: =D7/C7-1 -> 51% | E8: 8% | F8: 11% | G8: 4% | H8: 11% | I8: 11% | J8: 10%
B9: Tax Rate | C9: ='Income Statement'!B35 -> 6% | D9: ='Income Statement'!C35 -> 5% | E9: ='Income Statement'!D35 -> 4% | F9: ='Income Statement'!E35 -> 5% | G9: ='Income Statement'!F35 -> 5% | H9: ='Income Statement'!G35 -> 5% | I9: ='Income Statement'!H35 -> 5% | J9: ='Income Statement'!I35 -> 5%
B10: NOPAT | C10: =C7*(1-C9) -> 1,988,486 | D10: =D7*(1-D9) -> 3,032,738 | E10: 3,332,126 | F10: 3,649,797 | G10: 4,171,430 | H10: 4,622,159 | I10: 5,129,498 | J10: =J7*(1-J9) -> 5,650,060
B11: Plus: D&A | C11: ='Consolidated Statements of Cash'!B8 -> 1,561,969 | D11: ='Consolidated Statements of Cash'!C8 -> 1,577,942 | E11: ='Consolidated Statements of Cash'!D8 -> 1,812,777 | F11: ='Consolidated Statements of Cash'!E8 -> 849,432 | G11: ='Consolidated Statements of Cash'!F8 -> 948,154 | H11: ='Consolidated Statements of Cash'!G8 -> 964,840 | I11: ='Consolidated Statements of Cash'!H8 -> 1,070,743 | J11: ='Consolidated Statements of Cash'!I8 -> 1,048,361
B12: Less: CapEx | C12: ='Consolidated Statements of Cash'!B28 -> -1,248,294 | D12: ='Consolidated Statements of Cash'!C28 -> -1,237,022 | E12: ='Consolidated Statements of Cash'!D28 -> -4,097,456 | F12: ='Consolidated Statements of Cash'!E28 -> -1,733,534 | G12: ='Consolidated Statements of Cash'!F28 -> -1,935,007 | H12: ='Consolidated Statements of Cash'!G28 -> -2,144,088 | I12: ='Consolidated Statements of Cash'!H28 -> -2,379,428 | J12: ='Consolidated Statements of Cash'!I28 -> -2,620,902
B13: Less: Change in NWC | D13: =NWC!C19 -> 384,365 | E13: =NWC!D19 -> 1,195,011 | F13: =NWC!E19 -> 1,073,043 | G13: =NWC!F19 -> 649,887 | H13: =NWC!G19 -> 1,164,090 | I13: =NWC!H19 -> 1,016,742 | J13: =NWC!I19 -> 1,166,767
B14: FCFF | C14: =C10+C11-C12-C13 -> 4,798,749 | D14: =D10+D11-D12-D13 -> 5,463,337 | E14: 8,047,348 | F14: 5,159,720 | G14: 6,404,704 | H14: 6,566,996 | I14: 7,562,926 | J14: 8,152,555
B15: Discount Factor (years) | F15: 0.5 | G15: 1.5 | H15: 2.5 | I15: 3.5 | J15: 4.5
B16: Present Value FCFF | F16: =F14/(1+WACC!$C$19)^DCF!F15 -> 4,963,841.31 | G16: =G14/(1+WACC!$C$19)^DCF!G15 -> 5,702,616.81 | H16: =H14/(1+WACC!$C$19)^DCF!H15 -> 5,411,595.72 | I16: =I14/(1+WACC!$C$19)^DCF!I15 -> 5,768,087.89 | J16: =J14/(1+WACC!$C$19)^DCF!J15 -> 5,754,653.35
B18: Terminal Value (Growth) | J18: =(J14*(1+C29))/(C28-C29) -> 150,620,569
B19: Terminal Value (Multiple) | J19: =(J7+J11)*C30 -> 166,074,146
B21: Cash Flows (growth) | F21: =F14:I14 -> 5,159,720 | G21: 6,404,704 | H21: 6,566,996 | I21: 7,562,926 | J21: =J14+J18 -> 158,773,124
B22: Cash Flows (multiple) | F22: =F14:I14 -> 5,159,720 | G22: 6,404,704 | H22: 6,566,996 | I22: 7,562,926 | J22: =J14+J19 -> 174,226,701
B24: PV of CF (growth) | F24: =F21/(1+$C$28)^F15 -> 4,963,841.31 | G24: =G21/(1+$C$28)^G15 -> 5,702,616.81 | H24: 5,411,595.72 | I24: 5,768,087.89 | J24: 112,073,366.74
B25: PV of CF (multiple) | F25: =F22/(1+$C$28)^F15 -> 4,963,841.31 | G25: =G22/(1+$C$28)^G15 -> 5,702,616.81 | H25: 5,411,595.72 | I25: 5,768,087.89 | J25: 122,981,600.69
B28: WACC | C28: =WACC!C19 -> 8.05% | I28: gordon growth
B29: Terminal Growth Rate | C29: 2.50% | I29: perpetuity growth
B30: Terminal Multiple (EV/EBITDA) | C30: ='Comparable Companies '!P6 -> 23.74 | F30: =C40 -> 130.23 | G30: 1.50% | H30: 2.00% | I30: 2.50% | J30: 3.00% | K30: 3.50%
F31: 7.00% | G31: 136.75 | H31: 151.16 | I31: 168.76 | J31: 190.76 | K31: 219.04
B32: Gordon Growth | F32: 7.50% | G32: 122.35 | H32: 134.16 | I32: 148.33 | J32: 165.65 | K32: 187.29
B33: Enterprise Value | C33: =SUM(F24:J24) -> 133,919,508 | E33: WACC | F33: 8.00% | G33: 110.17 | H33: 120.00 | I33: 131.62 | J33: 145.56 | K33: 162.60
B34: Less: Debt | C34: ='Consolidated Balance Sheets'!D16 -> 23,875,961 | F34: 8.50% | G34: 99.73 | H34: 108.03 | I34: 117.70 | J34: 129.13 | K34: 142.85
B35: Plus: Cash | C35: ='Consolidated Balance Sheets'!D12 -> 278,483 | F35: 9.00% | G35: 90.69 | H35: 97.76 | I35: 105.92 | J35: 115.44 | K35: 126.69
B36: Less: Minority Interest | C36: ='Consolidated Balance Sheets'!D27 -> 4,625,811
B37: Equity Value | C37: =C33-C34+C35-C36 -> 105,696,219
I38: multiples method
B39: Diluted Shares Outstanding | C39: =WACC!F11 -> 811,608 | F39: =C50 -> $143.67 | G39: 21.78 | H39: 22.28 | I39: 22.78 | J39: 23.28 | K39: 23.78
B40: Price Per Share | C40: =C37/C39 -> $130.23 | F40: 7.00% | G40: 138.55 | H40: 141.73 | I40: 144.91 | J40: 148.09 | K40: 151.26
F41: 7.50% | G41: 135.26 | H41: 138.37 | I41: 141.49 | J41: 144.60 | K41: 147.71
B42: Terminal Multiple | E42: WACC | F42: 8.00% | G42: 132.05 | H42: 135.10 | I42: 138.15 | J42: 141.20 | K42: 144.24
B43: Enterprise Value | C43: =SUM(F25:J25) -> 144,827,742 | F43: 8.50% | G43: 128.92 | H43: 131.91 | I43: 134.89 | J43: 137.88 | K43: 140.86
B44: Less: Debt | C44: ='Consolidated Balance Sheets'!D16 -> 23,875,961 | F44: 9.00% | G44: 125.87 | H44: 128.79 | I44: 131.71 | J44: 134.64 | K44: 137.56
B45: Plus: Cash | C45: ='Consolidated Balance Sheets'!D12 -> 278,483
B46: Less: Minority Interest | C46: ='Consolidated Balance Sheets'!D27 -> 4,625,811
B47: Equity Value | C47: =C43-C44+C45-C46 -> 116,604,453
B49: Diluted Shares Outstanding | C49: =WACC!F11 -> 811,608
B50: Price Per Share | C50: =C47/C49 -> $143.67

Sheet Comparable Companies
A2: Prologis Inc. (NYSE: PLD)
A3: Comparable Companies Analysis (in thousands USD except share prices and ratios) | O3: LTM | T3: Forward 2024 Forecast
A4: Company | B4: Ticker | C4: Share Price | D4: Shares | E4: Market Cap | F4: Cash | G4: Total Debt | H4: Revenue | I4: EV | J4: EBIT | K4: EBITDA | L4: EPS | M4: FFO | N4: FFO Per Share | O4: EV/EBIT | P4: EV/EBITDA | Q4: EV/Revenue | R4: P/FFO | S4: P/E | T4: 2024E Revenue | U4: 2024E EBIT | V4: 2024E EBITDA | W4: 2024E EPS | X4: 2024E FFO | Y4: 2024E FFO Per Share | Z4: EV/2024E Revenue | AA4: EV/2024E EBIT | AB4: EV/2024E EBITDA | AC4: 2024E P/AFFO | AD4: 2024E P/E
A6: Prologis Inc. | B6: PLD | C6: 124.88 | D6: 811,608 | E6: =C6*D6 -> 101,353,607 | F6: 278,480 | G6: 24,510,000 | H6: 6,280,000 | I6: 137,580,000 | J6: ='Income Statement'!D29 -> 3,467,538 | K6: 5,795,490 | L6: ='Income Statement'!D38/'Comparable Companies '!D6 -> 4.15 | M6: 5,245,500 | N6: 5.16 | O6: =I6/J6 -> 39.68 | P6: =I6/K6 -> 23.74 | Q6: =I6/H6 -> 21.91 | R6: =C6/N6 -> 24.20 | S6: =C6/L6 -> 30.12 | T6: ='Revenue Build'!F11 -> 7,442,336 | U6: ='Income Statement'!F29 -> 4,390,978 | V6: ='Income Statement'!F29+'Consolidated Statements of Cash'!F8 -> 5,339,132 | W6: ='Income Statement'!F38/'Comparable Companies '!D6 -> 4.66 | X6: 538,521 | Y6: 5.65 | Z6: =I6/T6 -> 18.49 | AA6: =I6/U6 -> 31.33 | AB6: =I6/V6 -> 25.77 | AC6: =C6/Y6 -> 22.10 | AD6: =C6/W6 -> 26.82
A7: Terreno Realty Corp | B7: TRNO | C7: 61.88 | D7: 82,730 | E7: =C7*D7 -> 5,119,332 | F7: 26,390 | G7: 775,100 | H7: 276,210 | I7: =E7-F7+G7 -> 5,868,042 | J7: 30,200 | K7: 159,850 | L7: 2.61 | M7: 150,880 | N7: 2.00 | O7: =I7/J7 -> 194.31 | P7: =I7/K7 -> 36.71 | Q7: =I7/H7 -> 21.24 | R7: =C7/N7 -> 30.94 | S7: =C7/L7 -> 23.71 | T7: 342,600 | U7: 108,800 | V7: 231,400 | W7: 1.29 | X7: 23,400 | Y7: 2.35 | Z7: =I7/T7 -> 17.13 | AA7: =I7/U7 -> 53.93 | AB7: =I7/V7 -> 25.36 | AC7: =C7/Y7 -> 26.33 | AD7: =C7/W7 -> 47.97
A8: First Industrial | B8: FR | C8: 51.69 | D8: 132,100 | E8: 6,828,249 | F8: 147,300 | G8: 2,006,300 | H8: 539,900 | I8: 8,687,249 | J8: 129,800 | K8: 256,500 | L8: 2.72 | M8: 308,430 | N8: 2.29 | O8: 66.93 | P8: 33.87 | Q8: 16.09 | R8: 22.57 | S8: 19.00 | T8: 644,700 | U8: 270,000 | V8: 441,100 | W8: 1.37 | X8: 359,952 | Y8: 2.61 | Z8: 13.47 | AA8: 32.17 | AB8: 19.69 | AC8: 19.80 | AD8: 37.73
A9: EastGroup Properties | B9: EGP | C9: 162.01 | D9: 43,600 | E9: =C9*D9 -> 7,063,636 | F9: 100 | G9: 1,881,700 | H9: 487,000 | I9: 8,945,236 | J9: 145,300 | K9: 336,200 | L9: 4.39 | M9: 298,930 | N9: 7.00 | O9: 61.56 | P9: 26.61 | Q9: 18.37 | R9: 23.14 | S9: 36.90 | T9: 603,400 | U9: 171,300 | V9: 419,900 | W9: 3.90 | X9: 360,300 | Y9: 7.98 | Z9: 14.82 | AA9: 52.22 | AB9: 21.30 | AC9: 20.30 | AD9: 41.54
A10: Stag Industrial | B10: STAG | C10: 32.80 | D10: 179,200 | E10: 5,877,760 | F10: 25,900 | G10: 2,533,900 | H10: 657,300 | I10: 8,385,760 | J10: 127,400 | K10: 455,600 | L10: 1.00 | M10: 403,350 | N10: 2.21 | O10: 65.82 | P10: 18.41 | Q10: 12.76 | R10: 14.84 | S10: 32.80 | T10: 694,300 | U10: 138,700 | V10: 553,400 | W10: 0.68 | X10: 444,550 | Y10: 2.36 | Z10: 12.08 | AA10: 60.46 | AB10: 15.15 | AC10: 13.90 | AD10: 48.24
N12: Multiples
N13: Minimum | O13: =MIN(O6:O10) -> 39.68 | P13: =MIN(P6:P10) -> 18.41 | Q13: =MIN(Q6:Q10) -> 12.76 | R13: =MIN(R6:R10) -> 14.84 | S13: =MIN(S6:S10) -> 19.00 | Y13: Multiples | Z13: =MIN(Z6:Z10) -> 12.08 | AA13: =MIN(AA6:AA10) -> 31.33 | AB13: =MIN(AB6:AB10) -> 15.15 | AC13: =MIN(AC6:AC10) -> 13.90 | AD13: 26.82
N14: Quartile 1 | O14: =QUARTILE(O6:O10,1) -> 61.56 | P14: =QUARTILE(P6:P10,1) -> 23.74 | Q14: =QUARTILE(Q6:Q10,1) -> 16.09 | R14: =QUARTILE(R6:R10,1) -> 22.57 | S14: 23.71 | Y14: Minimum | Z14: =QUARTILE(Z6:Z10,1) -> 13.47 | AA14: =QUARTILE(AA6:AA10,1) -> 32.17 | AB14: =QUARTILE(AB6:AB10,1) -> 19.69 | AC14: =QUARTILE(AC6:AC10,1) -> 19.80 | AD14: 37.73
N15: Median | O15: =MEDIAN(O6:O10) -> 65.82 | P15: =MEDIAN(P6:P10) -> 26.61 | Q15: =MEDIAN(Q6:Q10) -> 18.37 | R15: =MEDIAN(R6:R10) -> 23.14 | S15: 30.12 | Y15: Quartile 1 | Z15: =MEDIAN(Z6:Z10) -> 14.82 | AA15: =MEDIAN(AA6:AA10) -> 52.22 | AB15: =MEDIAN(AB6:AB10) -> 21.30 | AC15: =MEDIAN(AC6:AC10) -> 20.30 | AD15: 41.54
N16: Quartile 3 | O16: =QUARTILE(O6:O10,3) -> 66.93 | P16: =QUARTILE(P6:P10,3) -> 33.87 | Q16: =QUARTILE(Q6:Q10,3) -> 21.24 | R16: =QUARTILE(R6:R10,3) -> 24.20 | S16: 32.80 | Y16: Median | Z16: =QUARTILE(Z6:Z10,3) -> 17.13 | AA16: =QUARTILE(AA6:AA10,3) -> 53.93 | AB16: =QUARTILE(AB6:AB10,3) -> 25.36 | AC16: =QUARTILE(AC6:AC10,3) -> 22.10 | AD16: 47.97
N17: Maximum | O17: =+MAX(O6:O10) -> 194.31 | P17: =+MAX(P6:P10) -> 36.71 | Q17: =+MAX(Q6:Q10) -> 21.91 | R17: =+MAX(R6:R10) -> 30.94 | S17: 36.90 | Y17: Quartile 3 | Z17: =+MAX(Z6:Z10) -> 18.49 | AA17: =+MAX(AA6:AA10) -> 60.46 | AB17: =+MAX(AB6:AB10) -> 25.77 | AC17: =+MAX(AC6:AC10) -> 26.33 | AD17: 48.24
Y18: Maximum
N19: Valuation
N20: Minimum | O20: =((O13*$J$6)-$G$6)/$D$6 -> 139.32 | P20: =(P13*$K$6)/$D$6 -> 131.43 | Q20: =((Q13*$H$6)-$G$6)/$D$6 -> 68.52 | R20: =(R13*$M$6)/$D$6 -> 95.92 | S20: =S13*L6 -> 78.79 | Y20: Valuation | Z20: =((Z13*$T$6)-$G$6)/$D$6 -> 80.55 | AA20: =((AA13*$U$6)-$G$6)/$D$6 -> 139.32 | AB20: =((AB13*$V$6)-$G$6)/$D$6 -> 69.49 | AC20: =(AC13*$X$6)/$D$7 -> 90.47 | AD20: =AD13*W6 -> 124.88
N21: Quartile 1 | O21: =((O14*$J$6)-$G$6)/$D$6 -> 232.83 | P21: =(P14*$K$6)/$D$6 -> 169.52 | Q21: =((Q14*$H$6)-$G$6)/$D$6 -> 94.30 | R21: =(R14*$M$6)/$D$6 -> 145.89 | S21: =S14*L7 -> 61.88 | Y21: Minimum | Z21: =((Z14*$T$6)-$G$6)/$D$6 -> 93.36 | AA21: =((AA14*$U$6)-$G$6)/$D$6 -> 143.87 | AB21: =((AB14*$V$6)-$G$6)/$D$6 -> 99.36 | AC21: =(AC14*$X$6)/$D$7 -> 128.92 | AD21: =AD14*W7 -> 48.67
N22: Median | O22: 251.02 | P22: 189.99 | Q22: 111.93 | R22: 149.58 | S22: =S15*L8 -> 81.93 | Y22: Quartile 1 | Z22: 105.74 | AA22: 252.32 | AB22: 109.94 | AC22: 132.15 | AD22: =AD15*W8 -> 56.91
N23: Quartile 3 | O23: 255.75 | P23: 241.85 | Q23: 134.19 | R23: 156.42 | S23: =S16*L9 -> 143.99 | Y23: Median | Z23: 126.86 | AA23: 261.60 | AB23: 136.62 | AC23: 143.87 | AD23: =AD16*W9 -> 187.08
N24: Maximum | O24: 799.96 | P24: 262.13 | Q24: 139.32 | R24: 199.97 | S24: =S17*L10 -> 36.90 | Y24: Quartile 3 | Z24: 139.32 | AA24: 296.90 | AB24: 139.32 | AC24: 171.40 | AD24: =AD17*W10 -> 32.80
Y25: Maximum

Sheet DDM
B2: Prologis Inc. (NYSE: PLD)
B3: Discounted Dividend Model ($ in Thousands)
B4: DPS | C4: 3.16
B5: Expected Market Return | C5: =WACC!C6 -> 9.00%
B6: Risk-Free Rate | C6: =WACC!C5 -> 3.88%
B7: Beta | C7: =Beta!L5 -> 1.018231168
B8: Cost of Equity | C8: =WACC!C8 -> 9.09%
B10: Period | C10: 1 | D10: 2
B11: Growth Rate | C11: 10.00% | D11: 7.00%
B12: Length of Period | C12: 6 Years | D12: Forever
B14: Year | C14: 1 | D14: =C14+1 -> 2 | E14: =D14+1 -> 3 | F14: 4 | G14: 5 | H14: 6
B15: DPS | C15: =C4*C11+C4 -> 3.476 | D15: =C15*$C$11+C15 -> 3.8236 | E15: =D15*$C$11+D15 -> 4.20596 | F15: 4.626556 | G15: 5.0892116 | H15: 5.59813276
B16: PV | C16: =(C15/(1+$C$8)^C14) -> 3.186262228 | D16: =(D15/(1+$C$8)^D14) -> 3.212742717 | E16: 3.239443281 | F16: 3.266365749 | G16: 3.293511965 | H16: 3.320883789
B19: Sum of PV of stage 1 | C19: =SUM(C16:H16) -> 19.51920973
B20: Final Year Dividend x 1+ stage 2 rate | C20: =H16*(1+D11) -> 3.553345654
B21: Terminal Value | C21: =(C20*(1+D11))/(C8-D11) -> 181.6271292
B22: PV of terminal Value | C22: =(C21/(1+C8)^5) -> 117.5410202
B23: Sum of Present Values | C23: =C22+SUM(C16:H16) -> 137.0602299
E28: Perpetuity Dividend Growth Rate
C29: =C23 -> 137.06 | D29: 6.50% | E29: 6.75% | F29: 7.00% | G29: 7.25% | H29: 7.50%
C30: 8.59% | D30: 142.32 | E30: 159.58 | F30: 182.27 | G30: 213.40 | H30: 258.77
C31: 8.84% | D31: 126.36 | E31: 139.66 | F31: 156.57 | G31: 178.79 | H31: 209.28
B32: Cost of Equity | C32: 9.09% | D32: 113.51 | E32: 124.03 | F32: 137.06 | G32: 153.63 | H32: 175.39
C33: 9.34% | D33: 102.96 | E33: 111.45 | F33: 121.75 | G33: 134.52 | H33: 150.75
C34: 9.59% | D34: 94.14 | E34: 101.12 | F34: 109.43 | G34: 119.53 | H34: 132.03

Sheet NAV
C2: Prologis Inc. (NYSE: PLD)
C3: Net Asset Valuation ($ in Thousands)
C4: Rental Income | D4: ='Income Statement'!D6 -> 4913171
C5: General and Administrative expenses | D5: ='Income Statement'!D17 -> 331,083
C6: Straight line rent | D6: =-'Consolidated Statements of Cash'!D6 -> 267,709
C7: Cash NOI | D7: =D4-D5-D6 -> 4,314,379
C9: Adjust noi for acquisitions, contruction, or purchases:
C10: Construction | D10: =-'Consolidated Statements of Cash'!D30 -> 442,366
C11: Cash NOI | D11: =D7-D10 -> 3,872,013
C13: Cap rate | D13: 8.50%
C14: Fair Market Value | D14: =D11/D13 -> 45553094.12
C16: Adjust for other investments and financing:
C17: Cash | D17: ='Consolidated Balance Sheets'!D10+'Consolidated Balance Sheets'!D12+'Consolidated Balance Sheets'!D11 -> 83,627,206
C18: Debt | D18: ='Consolidated Balance Sheets'!D16 -> 23,875,961
C19: NAV | D19: =D14+D17-D18 -> 105,304,339
C21: Shares outstanding | D21: ='Comparable Companies '!D6 -> 811608
C22: NAV per share | D22: =D19/D21 -> 129.7477836

Sheet Football Field
B3: Analyst Estimates:
B4: Evercore ISI | C4: 129
B5: Barclays | C5: 160
B6: Goldman Sachs | C6: 147
B7: Wells Fargo | C7: 135
B8: Citi | C8: 140
B9: RBC | C9: 145
B13: Football Field | C13: Min | D13: Spread | E13: Max
B14: LTM EV/EBITDA | C14: 131.43 | D14: =E14-C14 -> 130.70 | E14: 262.13
B15: FWD 2024 EV/EBITDA | C15: 69.49 | D15: =E15-C15 -> 69.83 | E15: 139.32
B16: LTM P/FFO | C16: ='Comparable Companies '!R20 -> 95.92 | D16: 104.05 | E16: ='Comparable Companies '!R24 -> 199.97
B17: DCF GG | C17: 90.69 | D17: 128.34 | E17: 219.04
B18: DCF MM | C18: 125.87 | D18: 25.40 | E18: 151.26
B19: 52-Week Range | C19: 98.03 | D19: 76.51 | E19: 174.54
B20: DDM | C20: 94.14 | D20: 164.62 | E20: 258.77
B27: Target Price Calculation | C27: Value | D27: Weight | E27: Weighted Value
B28: LTM EV/EBITDA | C28: ='Comparable Companies '!P22 -> 189.99 | D28: 25% | E28: =C28*D28 -> 47.50
B29: FWD 2024 EV/EBITDA | C29: ='Comparable Companies '!AB22 -> 109.94 | D29: 25% | E29: =C29*D29 -> 27.49
B30: FWD P/FFO | C30: ='Comparable Companies '!AC22 -> 132.15 | D30: 25% | E30: 33.04
B31: LTM P/FFO | C31: ='Comparable Companies '!R22 -> 149.58 | D31: 25% | E31: 37.40
E32: =SUM(E28:E31) -> 145.42
B35: Comps | C35: =E32 -> 145.42 | D35: 30% | E35: =C35*D35 -> 43.63
B36: MM | C36: =DCF!C50 -> $143.67 | D36: 30% | E36: =C36*D36 -> 43.10
B37: NAV | C37: =NAV!D22 -> $129.75 | D37: 20% | E37: 25.95
B38: DDM | C38: =DDM!C23 -> 137.06 | D38: 20% | E38: 27.41
B39: Target Price | E39: =SUM(E35:E38) -> 140.09
